fUSD/lending_fUSD_20241021
["ID","MTS","AMOUNT","RATE_DAILY","PERIOD"]
[340600082,1729518679008,-500.0,0.00024931,3]
[340600083,1729518679018,-501.77351682,0.00024931,3]
[340600084,1729518679028,-156.61682026,0.00024931,3]
[340600085,1729518679038,-501.39416436,0.00024931,3]
[340600086,1729518679048,-503.90897626,0.00024931,3]
[340600087,1729518679058,-503.0018839,0.00024931,3]
[340600088,1729518679067,-500.0,0.00024931,3]
[340600089,1729518679077,-400.95873406,0.00024931,3]
[340600090,1729518679087,-503.42739254,0.00024931,3]
[340600091,1729518679097,-500.0,0.00024931,3]
[340600092,1729518679106,-500.0,0.00024931,3]
[340600093,1729518679116,-500.0,0.00024931,3]
[340600094,1729518679127,-502.1998348,0.00024931,3]
[340600095,1729518679136,-492.41425178,0.00024931,3]
[340600096,1729518679146,-502.02283491,0.00024931,3]
[340600097,1729518679158,-500.0,0.00024931,3]
[340600098,1729518679168,-501.92439154,0.00024931,3]
[340600099,1729518679178,-500.0,0.00024931,3]
[340600100,1729518679188,-515.8809369,0.00024931,3]
[340600101,1729518679197,-500.0,0.00024931,3]
[340600102,1729518679208,-555.97791558,0.00024931,3]
[340600103,1729518679218,-500.0,0.00024931,3]
[340600104,1729518679228,-502.40289757,0.00024931,3]
[340600105,1729518679238,-500.0,0.00024931,3]
[340600106,1729518679247,-500.0,0.00024931,3]
[340600107,1729518679258,-540.77615645,0.00024931,3]
[340600108,1729518679269,-637.4651711,0.00024931,3]
[340600109,1729518679279,-500.0,0.00024931,3]
[340600110,1729518679289,-500.0,0.00024931,3]
[340600111,1729518679299,-500.0,0.00024931,3]
[340600112,1729518679309,-500.0,0.00024931,3]
[340600113,1729518679320,-500.0,0.00024931,3]
[340600114,1729518679330,-500.0,0.00024931,3]
[340600115,1729518679340,-512.35038777,0.00024931,3]
[340600116,1729518679350,-500.0,0.00024931,3]
[340600117,1729518679360,-467.7310648,0.00024931,3]
[340600118,1729518679370,-500.0,0.00024931,3]
[340600119,1729518679380,-500.0,0.00024931,3]
[340600120,1729518679391,-500.0,0.00024931,3]
[340600121,1729518679404,-175.4005402,0.00024931,3]
[340600122,1729518679413,-501.93644524,0.00024931,3]
[340600123,1729518679423,-514.91155365,0.00024931,3]
[340600124,1729518679433,-500.0,0.00024931,3]
[340600125,1729518679443,-500.0,0.00024931,3]
[340600126,1729518679454,-500.0,0.00024931,3]
[340600127,1729518679465,-500.0,0.00024931,3]
[340600128,1729518679475,-500.0,0.00024931,3]
[340600129,1729518679484,-500.0,0.00024931,3]
[340600130,1729518679494,-500.0,0.00024931,3]
[340600131,1729518679505,-502.57735916,0.00024931,3]
[340600132,1729518679515,-500.0,0.00024931,3]
[340600133,1729518679525,-508.62799307,0.00024931,3]
[340600134,1729518679535,-167.94137623,0.00024931,3]
[340600135,1729518679545,-161.22336704,0.00024931,3]
[340600136,1729518679554,-525.55170219,0.00024931,3]
[340600137,1729518679564,-500.0,0.00024931,3]
[340600138,1729518679574,-362.45,0.00024931,3]
[340600139,1729518679583,-506.25939025,0.00024931,3]
[340600140,1729518679593,-500.0,0.00024931,3]
[340600141,1729518679602,-500.0,0.00024931,3]
[340600142,1729518679612,-541.02001313,0.00024931,3]
[340600143,1729518679621,-500.0,0.00024931,3]
[340600144,1729518679631,-500.0,0.00024931,3]
[340600145,1729518679640,-322.13728942,0.00024931,3]
[340600146,1729518679649,-500.0,0.00024931,3]
[340600147,1729518679660,-500.0,0.00024931,3]
[340600148,1729518679670,-225.49,0.00024931,3]
[340600149,1729518679679,-500.0,0.00024931,3]
[340600150,1729518679689,-500.0,0.00024931,3]
[340600151,1729518679698,-500.0,0.00024931,3]
[340600152,1729518679707,-583.27499469,0.00024931,3]
[340600153,1729518679716,-500.0,0.00024931,3]
[340600154,1729518679726,-520.13033677,0.00024931,3]
[340600155,1729518679735,-504.08997286,0.00024931,3]
[340600156,1729518679745,-500.0,0.00024931,3]
[340600157,1729518679754,-501.54713812,0.00024931,3]
[340600158,1729518679764,-600.25833992,0.00024931,3]
[340600159,1729518679774,-634.06490753,0.00024931,3]
[340600160,1729518679783,-573.00441054,0.00024931,3]
[340600161,1729518679793,-500.0,0.00024931,3]
[340600162,1729518679802,-504.56159831,0.00024931,3]
[340600163,1729518679811,-500.0,0.00024931,3]
[340600164,1729518679821,-502.29510847,0.00024931,3]
[340600165,1729518679831,-503.01768393,0.00024931,3]
[340600166,1729518679842,-500.0,0.00024931,3]
[340600167,1729518679851,-500.0,0.00024931,3]
[340600168,1729518679860,-500.0,0.00024931,3]
[340600169,1729518679869,-500.0,0.00024931,3]
[340600170,1729518679878,-502.27346691,0.00024931,3]
[340600171,1729518679888,-500.0,0.00024931,3]
[340600172,1729518679897,-502.25589099,0.00024931,3]
[340600173,1729518679907,-500.0,0.00024931,3]
[340600174,1729518679916,-500.0,0.00024931,3]
[340600175,1729518679925,-500.0,0.00024931,3]
[340600176,1729518679935,-500.0,0.00024931,3]
[340600177,1729518679945,-500.0,0.00024931,3]
[340600178,1729518679956,-438.2708044,0.00024931,3]
[340600179,1729518679965,-598.20239412,0.00024931,3]
[340600180,1729518679975,-500.0,0.00024931,3]
[340600181,1729518679984,-506.90253732,0.00024931,3]
[340600182,1729518679993,-501.51174528,0.00024931,3]
[340600183,1729518680002,-500.0,0.00024931,3]
[340600184,1729518680011,-502.22158014,0.00024931,3]
[340600185,1729518680021,-500.0,0.00024931,3]
[340600186,1729518680030,-505.22911166,0.00024931,3]
[340600187,1729518680039,-575.80668324,0.00024931,3]
[340600188,1729518680048,-158.63210711,0.00024931,3]
[340600189,1729518680058,-500.0,0.00024931,3]
[340600190,1729518680067,-503.32943975,0.00024931,3]
[340600191,1729518680077,-527.00710263,0.00024931,3]
[340600192,1729518680086,-500.0,0.00024931,3]
[340600193,1729518680095,-560.47264731,0.00024931,3]
[340600194,1729518680105,-500.0,0.00024931,3]
[340600195,1729518680114,-501.98040752,0.00024931,3]
[340600196,1729518680124,-500.0,0.00024931,3]
[340600197,1729518680134,-508.50756281,0.00024931,3]
[340600198,1729518680143,-509.8171889,0.00024931,3]
[340600199,1729518680155,-500.0,0.00024931,3]
[340600200,1729518680164,-500.0,0.00024931,3]
[340600201,1729518680174,-500.0,0.00024931,3]
[340600202,1729518680183,-339.11884313,0.00024931,3]
[340600203,1729518680193,-500.0,0.00024931,3]
[340600204,1729518680202,-500.0,0.00024931,3]
[340600205,1729518680211,-500.0,0.00024931,3]
[340600206,1729518680220,-500.0,0.00024931,3]
[340600207,1729518680229,-500.99783534,0.00024931,3]
[340600208,1729518680239,-503.87272003,0.00024931,3]
[340600209,1729518680250,-520.18239684,0.00024931,3]
[340600210,1729518680259,-500.0,0.00024931,3]
[340600211,1729518680268,-502.34912216,0.00024931,3]
[340600212,1729518680278,-512.12358794,0.00024931,3]
[340600213,1729518680288,-500.0,0.00024931,3]
[340600214,1729518680298,-500.0,0.00024931,3]
[340600215,1729518680308,-506.28023012,0.00024931,3]
[340600216,1729518680318,-542.91007537,0.00024931,3]
[340600217,1729518680328,-500.0,0.00024931,3]
[340600218,1729518680337,-424.40123669,0.00024931,3]
[340600219,1729518680348,-500.0,0.00024931,3]
[340600220,1729518680357,-500.0,0.00024931,3]
[340600221,1729518680367,-500.0,0.00024931,3]
[340600222,1729518680376,-517.26410472,0.00024931,3]
[340600223,1729518680386,-568.49801041,0.00024931,3]
[340600224,1729518680396,-515.11839181,0.00024931,3]
[340600225,1729518680412,-500.0,0.00024931,3]
[340600226,1729518680421,-308.40230248,0.00024931,3]
[340600227,1729518680431,-503.87891741,0.00024931,3]
[340600228,1729518680442,-504.05165488,0.00024931,3]
[340600229,1729518680453,-501.65419505,0.00024931,3]
[340600230,1729518680470,-510.38865013,0.00024931,3]
[340600231,1729518680482,-500.0,0.00024931,3]
[340600232,1729518680491,-502.08307966,0.00024931,3]
[340600233,1729518680501,-500.0,0.00024931,3]
[340600234,1729518680510,-504.11415774,0.00024931,3]
[340600235,1729518680520,-509.84949789,0.00024931,3]
[340600236,1729518680530,-500.0,0.00024931,3]
[340600237,1729518680539,-500.0,0.00024931,3]
[340600238,1729518680550,-537.9012363,0.00024931,3]
[340600239,1729518680560,-500.0,0.00024931,3]
[340600240,1729518680570,-488.09041447,0.00024931,3]
[340600241,1729518680580,-500.0,0.00024931,3]
[340600242,1729518680589,-500.0,0.00024931,3]
[340600243,1729518680599,-500.0,0.00024931,3]
[340600244,1729518680608,-500.0,0.00024931,3]
[340600245,1729518680618,-602.82423771,0.00024931,3]
[340600246,1729518680627,-500.0,0.00024931,3]
[340600247,1729518680636,-509.62762574,0.00024931,3]
[340600248,1729518680646,-474.6688692,0.00024931,3]
[340600249,1729518680657,-501.58700487,0.00024931,3]
[340600250,1729518680666,-500.0,0.00024931,3]
[340600251,1729518680675,-500.0,0.00024931,3]
[340600252,1729518680685,-507.9086178,0.00024931,3]
[340600253,1729518680834,-502.49323896,0.00024931,3]
[340600254,1729518680845,-500.0,0.00024931,3]
[340600255,1729518680855,-500.0,0.00024931,3]
[340600256,1729518680866,-500.0,0.00024931,3]
[340600257,1729518680876,-500.0,0.00024931,3]
[340600258,1729518680885,-500.0,0.00024931,3]
[340600259,1729518680895,-500.0,0.00024931,3]
[340600260,1729518680906,-243.51986413,0.00024931,3]
[340600261,1729518680916,-500.0,0.00024931,3]
[340600262,1729518680926,-419.33931376,0.00024931,3]
[340600263,1729518680935,-500.0,0.00024931,3]
[340600264,1729518680945,-501.90986089,0.00024931,3]
[340600265,1729518680955,-500.0,0.00024931,3]
[340600266,1729518680964,-500.0,0.00024931,3]
[340600267,1729518680974,-500.0,0.00024931,3]
[340600268,1729518680984,-513.03327222,0.00024931,3]
[340600269,1729518680994,-500.0,0.00024931,3]
[340600270,1729518681003,-500.0,0.00024931,3]
[340600271,1729518681013,-502.54587174,0.00024931,3]
[340600272,1729518681023,-216.6955349,0.00024931,3]
[340600273,1729518681032,-504.32202117,0.00024931,3]
[340600274,1729518681042,-500.0,0.00024931,3]
[340600275,1729518681051,-536.66990994,0.00024931,3]
[340600276,1729518681061,-502.20507719,0.00024931,3]
[340600277,1729518681071,-500.0,0.00024931,3]
[340600278,1729518681080,-527.27344393,0.00024931,3]
[340600279,1729518681090,-606.08422974,0.00024931,3]
[340600280,1729518681099,-500.0,0.00024931,3]
[340600281,1729518681109,-502.79165208,0.00024931,3]
[340600282,1729518681118,-500.0,0.00024931,3]
[340600283,1729518681129,-500.0,0.00024931,3]
[340600284,1729518681144,-500.0,0.00024931,3]
[340600285,1729518681156,-500.0,0.00024931,3]
[340600286,1729518681166,-528.56846701,0.00024931,3]
[340600287,1729518681176,-174.28057261,0.00024931,3]
[340600288,1729518681186,-500.0,0.00024931,3]
[340600289,1729518681198,-500.0,0.00024931,3]
[340600290,1729518681208,-500.0,0.00024931,3]
[340600291,1729518681217,-500.0,0.00024931,3]
[340600292,1729518681227,-524.82849425,0.00024931,3]
[340600293,1729518681237,-501.29444644,0.00024931,3]
[340600294,1729518681247,-505.50566928,0.00024931,3]
[340600295,1729518681257,-500.0,0.00024931,3]
[340600296,1729518681267,-515.29232532,0.00024931,3]
[340600297,1729518681277,-197.85439163,0.00024931,3]
[340600298,1729518681287,-501.88569355,0.00024931,3]
[340600299,1729518681297,-500.0,0.00024931,3]
[340600300,1729518681307,-500.0,0.00024931,3]
[340600301,1729518681316,-266.95809566,0.00024931,3]
[340600302,1729518681326,-501.74046933,0.00024931,3]
[340600303,1729518681336,-500.0,0.00024931,3]
[340600304,1729518681346,-500.0,0.00024931,3]
[340600305,1729518681356,-500.0,0.00024931,3]
[340600306,1729518681365,-500.0,0.00024931,3]
[340600307,1729518681375,-346.09431023,0.00024931,3]
[340600308,1729518681385,-503.89547095,0.00024931,3]
[340600309,1729518681395,-500.0,0.00024931,3]
[340600310,1729518681411,-500.0,0.00024931,3]
[340600311,1729518681421,-627.25227868,0.00024931,3]
[340600312,1729518681431,-522.17130189,0.00024931,3]
[340600313,1729518681441,-500.0,0.00024931,3]
[340600314,1729518681451,-506.85541478,0.00024931,3]
[340600315,1729518681461,-500.0,0.00024931,3]
[340600316,1729518681470,-500.0,0.00024931,3]
[340600317,1729518681480,-624.84026739,0.00024931,3]
[340600318,1729518681490,-513.11576939,0.00024931,3]
[340600319,1729518681499,-500.0,0.00024931,3]
[340600320,1729518681509,-500.0,0.00024931,3]
[340600321,1729518681520,-196.43547529,0.00024931,3]
[340600322,1729518681529,-504.4614811,0.00024931,3]
[340600323,1729518681539,-500.0,0.00024931,3]
[340600324,1729518681551,-502.07974238,0.00024931,3]
[340600325,1729518681561,-507.42026337,0.00024931,3]
[340600326,1729518681571,-500.0,0.00024931,3]
[340600327,1729518681580,-500.0,0.00024931,3]
[340600328,1729518681590,-554.55257271,0.00024931,3]
[340600329,1729518681600,-501.99307785,0.00024931,3]
[340600330,1729518681610,-502.37471811,0.00024931,3]
[340600331,1729518681620,-502.17669012,0.00024931,3]
[340600332,1729518681630,-500.0,0.00024931,3]
[340600333,1729518681640,-502.40017966,0.00024931,3]
[340600334,1729518681650,-502.15960026,0.00024931,3]
[340600335,1729518681662,-500.0,0.00024931,3]
[340600336,1729518681672,-503.86210267,0.00024931,3]
[340600337,1729518681682,-501.17954249,0.00024931,3]
[340600338,1729518681693,-507.15951352,0.00024931,3]
[340600339,1729518681703,-500.0,0.00024931,3]
[340600340,1729518681712,-538.66478189,0.00024931,3]
[340600341,1729518681723,-502.20285026,0.00024931,3]
[340600342,1729518681732,-500.0,0.00024931,3]
[340600343,1729518681742,-500.0,0.00024931,3]
[340600344,1729518681751,-555.27580689,0.00024931,3]
[340600345,1729518681761,-500.0,0.00024931,3]
[340600346,1729518681771,-500.0,0.00024931,3]
[340600347,1729518681780,-403.01898523,0.00024931,3]
[340600348,1729518681790,-500.0,0.00024931,3]
[340600349,1729518681800,-511.08046217,0.00024931,3]
[340600350,1729518681810,-503.65918106,0.00024931,3]
[340600351,1729518681819,-502.2063047,0.00024931,3]
[340600352,1729518681828,-501.27342516,0.00024931,3]
[340600353,1729518681839,-500.0,0.00024931,3]
[340600354,1729518681849,-500.0,0.00024931,3]
[340600355,1729518681859,-500.0,0.00024931,3]
[340600356,1729518681868,-511.86663644,0.00024931,3]
[340600357,1729518681878,-500.0,0.00024931,3]
[340600358,1729518681887,-500.0,0.00024931,3]
[340600359,1729518681897,-500.0,0.00024931,3]
[340600360,1729518681907,-505.86306454,0.00024931,3]
[340600361,1729518681917,-238.15167032,0.00024931,3]
[340600362,1729518681926,-500.0,0.00024931,3]
[340600363,1729518681936,-340.43053455,0.00024931,3]
[340600364,1729518681947,-500.0,0.00024931,3]
[340600365,1729518681957,-500.0,0.00024931,3]
[340600366,1729518681967,-502.93653988,0.00024931,3]
[340600367,1729518681977,-304.7999995,0.00024931,3]
[340600368,1729518681987,-500.0,0.00024931,3]
[340600369,1729518681997,-501.33726699,0.00024931,3]
[340600370,1729518682008,-500.0,0.00024931,3]
[340600371,1729518682017,-294.11909454,0.00024931,3]
[340600372,1729518682027,-510.08352797,0.00024931,3]
[340600373,1729518682036,-500.0,0.00024931,3]
[340600374,1729518682046,-500.0,0.00024931,3]
[340600375,1729518682056,-431.55,0.00024931,3]
[340600376,1729518682067,-500.0,0.00024931,3]
[340600377,1729518682077,-500.0,0.00024931,3]
[340600378,1729518682086,-417.33020329,0.00024931,3]
[340600379,1729518682096,-500.0,0.00024931,3]
[340600380,1729518682107,-150.87868989,0.00024931,3]
[340600381,1729518682117,-500.0,0.00024931,3]
[340600382,1729518682128,-500.0,0.00024931,3]
[340600383,1729518682138,-537.72694776,0.00024931,3]
[340600384,1729518682149,-500.0,0.00024931,3]
[340600385,1729518682162,-500.0,0.00024931,3]
[340600386,1729518682175,-500.0,0.00024931,3]
[340600387,1729518682186,-500.0,0.00024931,3]
[340600388,1729518682195,-502.6599928,0.00024931,3]
[340600389,1729518682205,-500.0,0.00024931,3]
[340600390,1729518682215,-500.0,0.00024931,3]
[340600391,1729518682225,-500.0,0.00024931,3]
[340600392,1729518682235,-500.0,0.00024931,3]
[340600393,1729518682246,-265.72457902,0.00024931,3]
[340600394,1729518682255,-440.14872101,0.00024931,3]
[340600395,1729518682265,-501.5971625,0.00024931,3]
[340600396,1729518682276,-583.48,0.00024931,3]
[340600397,1729518682285,-500.0,0.00024931,3]
[340600398,1729518682295,-500.0,0.00024931,3]
[340600399,1729518682305,-500.0,0.00024931,3]
[340600400,1729518682315,-500.0,0.00024931,3]
[340600401,1729518682325,-368.87515086,0.00024931,3]
[340600402,1729518682334,-233.32302174,0.00024931,3]
[340600403,1729518682344,-514.12625049,0.00024931,3]
[340600404,1729518682354,-502.44816352,0.00024931,3]
[340600405,1729518682364,-500.0,0.00024931,3]
[340600406,1729518682374,-517.09001193,0.00024931,3]
[340600407,1729518682384,-500.0,0.00024931,3]
[340600408,1729518682394,-505.09653937,0.00024931,3]
[340600409,1729518682407,-504.10108306,0.00024931,3]
[340600410,1729518682416,-500.0,0.00024931,3]
[340600411,1729518682426,-502.84604124,0.00024931,3]
[340600412,1729518682436,-505.28503196,0.00024931,3]
[340600413,1729518682447,-562.80202248,0.00024931,3]
[340600414,1729518682456,-500.0,0.00024931,3]
[340600415,1729518682467,-500.0,0.00024931,3]
[340600416,1729518682476,-502.07509066,0.00024931,3]
[340600417,1729518682486,-489.28322791,0.00024931,3]
[340600418,1729518682497,-503.2611284,0.00024931,3]
[340600419,1729518682507,-500.0,0.00024931,3]
[340600420,1729518682517,-500.0,0.00024931,3]
[340600421,1729518682527,-200.50844528,0.00024931,3]
[340600422,1729518682536,-506.22069065,0.00024931,3]
[340600423,1729518682547,-501.70128136,0.00024931,3]
[340600424,1729518682558,-500.0,0.00024931,3]
[340600425,1729518682568,-502.26375287,0.00024931,3]
[340600426,1729518682578,-500.0,0.00024931,3]
[340600427,1729518682588,-500.0,0.00024931,3]
[340600428,1729518682598,-500.0,0.00024931,3]
[340600429,1729518682608,-506.86492952,0.00024931,3]
[340600430,1729518682618,-500.0,0.00024931,3]
[340600431,1729518682627,-196.69605246,0.00024931,3]
[340600432,1729518682637,-502.86516807,0.00024931,3]
[340600433,1729518682646,-511.71685389,0.00024931,3]
[340600434,1729518682656,-500.0,0.00024931,3]
[340600435,1729518682666,-502.30251404,0.00024931,3]
[340600436,1729518682675,-502.68106475,0.00024931,3]
[340600437,1729518682686,-500.0,0.00024931,3]
[340600438,1729518682696,-511.04301331,0.00024931,3]
[340600439,1729518682706,-500.0,0.00024931,3]
[340600440,1729518682716,-645.81503328,0.00024931,3]
[340600441,1729518682726,-500.0,0.00024931,3]
[340600442,1729518682736,-500.0,0.00024931,3]
[340600443,1729518682746,-500.0,0.00024931,3]
[340600444,1729518682756,-500.0,0.00024931,3]
[340600445,1729518682766,-511.01132684,0.00024931,3]
[340600446,1729518682775,-500.0,0.00024931,3]
[340600447,1729518682785,-500.0,0.00024931,3]
[340600448,1729518682795,-506.52136317,0.00024931,3]
[340600449,1729518682804,-503.01688403,0.00024931,3]
[340600450,1729518682814,-273.73818123,0.00024931,3]
[340600451,1729518682823,-500.0,0.00024931,3]
[340600452,1729518682833,-433.10878527,0.00024931,3]
[340600453,1729518682844,-509.40296802,0.00024931,3]
[340600454,1729518682854,-500.0,0.00024931,3]
[340600455,1729518682864,-504.60009848,0.00024931,3]
[340600456,1729518682874,-503.64185485,0.00024931,3]
[340600457,1729518682884,-500.0,0.00024931,3]
[340600458,1729518682895,-522.69748526,0.00024931,3]
[340600459,1729518682906,-500.0,0.00024931,3]
[340600460,1729518682916,-500.0,0.00024931,3]
[340600461,1729518682926,-500.0,0.00024931,3]
[340600462,1729518682936,-502.03727579,0.00024931,3]
[340600463,1729518682946,-505.46511438,0.00024931,3]
[340600464,1729518682956,-500.0,0.00024931,3]
[340600465,1729518682965,-500.0,0.00024931,3]
[340600466,1729518682975,-500.0,0.00024931,3]
[340600467,1729518682984,-393.90885258,0.00024931,3]
[340600468,1729518682994,-502.80797021,0.00024931,3]
[340600469,1729518683004,-500.0,0.00024931,3]
[340600470,1729518683014,-181.94328711,0.00024931,3]
[340600471,1729518683274,-500.0,0.00024931,3]
[340600472,1729518683347,-588.8835615,0.00024931,3]
[340600473,1729518683358,-502.04954466,0.00024931,3]
[340600474,1729518683368,-500.0,0.00024931,3]
[340600475,1729518683378,-502.78495852,0.00024931,3]
[340600476,1729518683389,-503.35403718,0.00024931,3]
[340600477,1729518683400,-500.0,0.00024931,3]
[340600478,1729518683413,-502.09236095,0.00024931,3]
[340600479,1729518683423,-503.10520531,0.00024931,3]
[340600480,1729518683433,-500.0,0.00024931,3]
[340600481,1729518683443,-503.35874134,0.00024931,3]
[340600482,1729518683453,-500.0,0.00024931,3]
[340600483,1729518683463,-500.0,0.00024931,3]
[340600484,1729518683473,-500.0,0.00024931,3]
[340600485,1729518683483,-500.0,0.00024931,3]
[340600486,1729518683493,-500.0,0.00024931,3]
[340600487,1729518683502,-500.0,0.00024931,3]
[340600488,1729518683512,-503.83278331,0.00024931,3]
[340600489,1729518683522,-500.0,0.00024931,3]
[340600490,1729518683531,-189.04884332,0.00024931,3]
[340600491,1729518683541,-291.27865793,0.00024931,3]
[340600492,1729518683550,-500.0,0.00024931,3]
[340600493,1729518683560,-575.96085414,0.00024931,3]
[340600494,1729518683570,-500.0,0.00024931,3]
[340600495,1729518683580,-500.0,0.00024931,3]
[340600496,1729518683589,-501.94635663,0.00024931,3]
[340600497,1729518683598,-500.0,0.00024931,3]
[340600498,1729518683608,-500.0,0.00024931,3]
[340600499,1729518683618,-511.57150547,0.00024931,3]
[340600500,1729518683627,-411.10267363,0.00024931,3]
[340600501,1729518683637,-500.0,0.00024931,3]
[340600502,1729518683646,-500.0,0.00024931,3]
[340600503,1729518683656,-275.28327899,0.00024931,3]
[340600504,1729518683666,-509.59581889,0.00024931,3]
[340600505,1729518683675,-500.0,0.00024931,3]
[340600506,1729518683685,-500.0,0.00024931,3]
[340600507,1729518683695,-500.0,0.00024931,3]
[340600508,1729518683704,-462.01641678,0.00024931,3]
[340600509,1729518683713,-500.0,0.00024931,3]
[340600510,1729518683723,-500.0,0.00024931,3]
[340600511,1729518683732,-500.0,0.00024931,3]
[340600512,1729518683741,-500.0,0.00024931,3]
[340600513,1729518683751,-500.0,0.00024931,3]
[340600514,1729518683761,-500.0,0.00024931,3]
[340600515,1729518683770,-491.42094039,0.00024931,3]
[340600516,1729518683780,-511.53548035,0.00024931,3]
[340600517,1729518683789,-500.0,0.00024931,3]
[340600518,1729518683800,-416.6,0.00024931,3]
[340600519,1729518683809,-511.26823329,0.00024931,3]
[340600520,1729518683820,-500.0,0.00024931,3]
[340600521,1729518683830,-500.0,0.00024931,3]
[340600522,1729518683840,-328.5970856,0.00024931,3]
[340600523,1729518683850,-500.0,0.00024931,3]
[340600524,1729518683860,-630.62613424,0.00024931,3]
[340600525,1729518683870,-500.0,0.00024931,3]
[340600526,1729518683880,-500.0,0.00024931,3]
[340600527,1729518683890,-503.63272979,0.00024931,3]
[340600528,1729518683900,-520.53913796,0.00024931,3]
[340600529,1729518683913,-500.0,0.00024931,3]
[340600530,1729518683923,-503.61425788,0.00024931,3]
[340600531,1729518683934,-500.0,0.00024931,3]
[340600532,1729518683944,-503.5797084,0.00024931,3]
[340600533,1729518683955,-500.0,0.00024931,3]
[340600534,1729518683964,-500.0,0.00024931,3]
[340600535,1729518683974,-500.0,0.00024931,3]
[340600536,1729518683984,-501.31453475,0.00024931,3]
[340600537,1729518683994,-209.86513893,0.00024931,3]
[340600538,1729518684004,-500.0,0.00024931,3]
[340600539,1729518684014,-508.97015669,0.00024931,3]
[340600540,1729518684023,-500.0,0.00024931,3]
[340600541,1729518684033,-502.81820257,0.00024931,3]
[340600542,1729518684044,-515.92511041,0.00024931,3]
[340600543,1729518684054,-500.0,0.00024931,3]
[340600544,1729518684065,-512.96815746,0.00024931,3]
[340600545,1729518684075,-500.0,0.00024931,3]
[340600546,1729518684084,-507.73947329,0.00024931,3]
[340600547,1729518684095,-500.0,0.00024931,3]
[340600548,1729518684104,-500.00381227,0.00024931,3]
[340600549,1729518684114,-500.0,0.00024931,3]
[340600550,1729518684124,-500.0,0.00024931,3]
[340600551,1729518684134,-500.0,0.00024931,3]
[340600552,1729518684144,-475.05311854,0.00024931,3]
[340600553,1729518684153,-500.0,0.00024931,3]
[340600554,1729518684165,-201.05510488,0.00024931,3]
[340600555,1729518684175,-500.0,0.00024931,3]
[340600556,1729518684185,-500.0,0.00024931,3]
[340600557,1729518684195,-500.0,0.00024931,3]
[340600558,1729518684204,-500.0,0.00024931,3]
[340600559,1729518684214,-509.32591002,0.00024931,3]
[340600560,1729518684224,-304.71309246,0.00024931,3]
[340600561,1729518684233,-500.0,0.00024931,3]
[340600562,1729518684244,-504.78033273,0.00024931,3]
[340600563,1729518684254,-500.0,0.00024931,3]
[340600564,1729518684263,-502.01605903,0.00024931,3]
[340600565,1729518684273,-500.0,0.00024931,3]
[340600566,1729518684282,-500.0,0.00024931,3]
[340600567,1729518684292,-500.0,0.00024931,3]
[340600568,1729518684302,-217.47607259,0.00024931,3]
[340600569,1729518684311,-500.0,0.00024931,3]
[340600570,1729518684321,-502.15641018,0.00024931,3]
[340600571,1729518684331,-503.22928467,0.00024931,3]
[340600572,1729518684341,-500.0,0.00024931,3]
[340600573,1729518684350,-512.27013931,0.00024931,3]
[340600574,1729518684360,-500.0,0.00024931,3]
[340600575,1729518684369,-500.0,0.00024931,3]
[340600576,1729518684379,-207.8152318,0.00024931,3]
[340600577,1729518684388,-500.0,0.00024931,3]
[340600578,1729518684400,-500.0,0.00024931,3]
[340600579,1729518684413,-500.0,0.00024931,3]
[340600580,1729518684423,-520.93026879,0.00024931,3]
[340600581,1729518684432,-500.0,0.00024931,3]